Cogmind - Beta 13 @@@ ROGUE MODE // 2024.04.21 @ 20:24:24 Player: Cwaftwer Result: Destroyed by as-29043 with Assembled Maul Performance ------------- Evolutions (0) 0 Regions Visited (4) 800 Robots Destroyed (12) 60 Value Destroyed (290) 290 Prototype IDs (0) 0 Alien Tech Used (0) 0 Bonus (0) 0 TOTAL SCORE: 1150 Bonus ------- None Cogmind --------- Core Integrity 0/250 Matter 126/300 Energy 250/250 System Corruption 2% Temperature Cool (0) Movement Rolling (95) Ox1 Location -9/Mines Parts ------- > --- POWER (1) -------- Ion Engine > --- PROPULSION (2) --- Wheel Wheel > --- UTILITY (2) ------ Large Storage Unit Makeshift Terrain Scan Processor > --- WEAPON (2) ------- Light Cannon Makeshift Axe > --- INVENTORY (15) --- Wheel Heat Sink High-capacity Matter Pod (200) High-capacity Matter Pod (200) Core Shielding Propulsion Shielding Beam Rifle Grenade Launcher Rocket Launcher Mining Laser Mining Laser Peak State ------------ > --- POWER ------------ Ion Engine > --- PROPULSION ------- Wheel Wheel > --- UTILITY ---------- Large Storage Unit Makeshift Terrain Scan Processor > --- WEAPON ----------- Light Cannon Makeshift Axe > --- INVENTORY -------- Wheel Heat Sink High-capacity Matter Pod High-capacity Matter Pod Core Shielding Propulsion Shielding Beam Rifle Grenade Launcher Mining Laser Mining Laser [Rating: 14] Favorites ----------- Power Light Ion Engine Engine Light Ion Engine Propulsion Wheel Wheel Wheel Utility Large Storage Unit Storage Large Storage Unit Processor Makeshift Terrain Scan Processor Protection Light Armor Plating Weapon Heavy Assault Rifle Energy Gun Small Laser Ballistic Gun Heavy Assault Rifle Ballistic Cannon Light Cannon Launcher Grenade Launcher Impact Weapon Hammer Slashing Weapon Makeshift Axe Build | -11 -10 -10 -10 -9 ------- Run | Yrd Mat Min Exi Min Slots Evolved . | . . . . . Power . | . . . . . Propulsion . | . . . . . Utility . | . . . . . Weapon . | . . . . . Parts Attached 27 | 6 2 9 . 10 Power 3 | 1 . 1 . 1 Engine 3 | 1 . 1 . 1 Core . | . . . . . Reactor . | . . . . . Propulsion 6 | 2 . 3 . 1 Treads . | . . . . . Leg . | . . . . . Wheel 6 | 2 . 3 . 1 Hover . | . . . . . Flight . | . . . . . Utility 4 | 1 1 1 . 1 Device . | . . . . . Storage 2 | 1 1 . . . Processor 1 | . . . . 1 Hackware . | . . . . . Protection 1 | . . 1 . . Artifact . | . . . . . Weapon 14 | 2 1 4 . 7 Energy Gun 3 | 1 . 1 . 1 Energy Cannon . | . . . . . Ballistic Gun 5 | 1 1 2 . 1 Ballistic Cannon 2 | . . . . 2 Launcher 2 | . . . . 2 Special Weapon . | . . . . . Impact Weapon 1 | . . 1 . . Slashing Weapon 1 | . . . . 1 Piercing Weapon . | . . . . . Special Melee Weapon . | . . . . . Unidentified Prototypes . | . . . . . Parts Lost 8 | . . 3 . 5 Power 2 | . . 1 . 1 Propulsion 3 | . . 2 . 1 Utility 1 | . . . . 1 Weapon 2 | . . . . 2 Highest Loss Streak 4 | . . 2 . 4 To Critical Strikes . | . . . . . Average Slot Usage (%) 85 | . 85 79 100 84 Engine 10 | . 14 8 14 10 Wheel 20 | . 28 14 28 25 Storage 14 | . 14 14 14 14 Protection 10 | . . 13 14 . Energy Gun 3 | . 14 3 . 2 Ballistic Gun 20 | . 14 20 28 7 Ballistic Cannon 1 | . . . . 11 Impact Weapon 2 | . . 4 . . Naked Turns . | . . . . . Heaviest Build 34 | 12 28 34 31 31 Greatest Support 26 | 26 26 26 20 20 Greatest Overweight (x) 9 | . 1 9 1 2 Average Overweight (x) 1 | . . 2 1 1 Largest Inventory Capacity 15 | 8 15 15 15 15 Average Capacity 14 | 6 13 15 15 15 Most Carried 15 | 2 8 15 15 15 Average Carried 11 | . 5 12 14 12 Final Capacity 15 | 8 15 15 15 15 Final Carried 15 | 1 7 15 15 11 Class Distribution -------------------- 55% | Mutant 45% | Scavenger-Mutant Dominant Class ---------------- Mutant | -10/Materials Mutant | -10/Mines Scavenger-Mutant | -10/Exiles Mutant | -9/Mines Resources | -11 -10 -10 -10 -9 ----------- Run | Yrd Mat Min Exi Min Matter Collected 661 | 201 . 426 . 34 Remotely . | . . . . . Salvage Created 341 | . . 254 . 87 Parts 24 | . . 15 . 9 Haulers Intercepted . | . . . . . Recyclers Shooed . | . . . . . Parts Field Recycled . | . . . . . Retrieved Matter . | . . . . . Parts Self-Destructed . | . . . . . Prevented . | . . . . . Kills | -11 -10 -10 -10 -9 ------- Run | Yrd Mat Min Exi Min Combat Hostiles Destroyed 13 | . . 7 . 6 Guns 10 | . . 7 . 3 AOE 3 | . . . . 3 Classes Destroyed 5 | . . 5 . . Tunneler 3 | . . 2 . 1 Swarmer 3 | . . 3 . . Grunt 4 | . . 1 . 3 Sentry 2 | . . 2 . . Assembled 4 | . . 1 . 3 Best Kill Streak 4 | . . 3 . 4 Combat Bots Only 3 | . . 3 . 3 Max Kills in Single Turn 2 | . . 1 . 2 Gunslinging . | . . . . . Exploded 2 | . . . . 2 Melee . | . . . . . Uniques/NPCs Destroyed . | . . . . . Combat | -11 -10 -10 -10 -9 -------- Run | Yrd Mat Min Exi Min Hostile Shots Fired 79 | . 2 34 . 43 Missed 19 | . 1 4 . 14 Damage Taken 1097 | . 11 644 . 442 Core 272 | . 11 153 . 108 Absorbed by Shields . | . . . . . Core Remaining (%) 100 | 100 . . . . Volleys Fired 38 | . 1 20 . 17 Largest 2 | . 2 2 . 2 Hottest 91 | . 60 79 . 91 Shots Fired 69 | . 2 37 . 30 Gun 56 | . 2 37 . 17 Cannon 6 | . . . . 6 Launcher 7 | . . . . 7 Special . | . . . . . Kinetic 43 | . 1 23 . 19 Thermal 19 | . 1 14 . 4 Explosive 7 | . . . . 7 Electromagnetic . | . . . . . Robot Hit Streak 6 | . 2 6 . 3 Robot Miss Streak 3 | . . 2 . 3 Penetration Max . | . . . . . Secondary Targets . | . . . . . Shots Hit Robots 40 | . 2 23 . 15 Core Hits 24 | . . 11 . 13 Critical Kills 1 | . . 1 . . Critical Parts Destroyed . | . . . . . Critical Strikes 3 | . . 3 . . Burn 2 | . . 2 . . Destroy 1 | . . 1 . . Melee Attacks 6 | . . 6 . . Impact 6 | . . 6 . . Slashing . | . . . . . Piercing . | . . . . . Sneak Attacks 2 | . . 2 . . Combat Hostiles . | . . . . . Follow-up Attacks . | . . . . . Damage Inflicted 979 | . 23 379 . 577 Guns 412 | . 23 275 . 114 Cannons 55 | . . . . 55 Explosions 408 | . . . . 408 Melee 104 | . . 104 . . Ramming . | . . . . . Kinetic 313 | . 12 147 . 154 Thermal 154 | . 11 128 . 15 Explosive 408 | . . . . 408 Electromagnetic . | . . . . . Impact 104 | . . 104 . . Slashing . | . . . . . Piercing . | . . . . . Highest Corruption 2 | . . 2 2 2 Average Corruption 2 | . . 2 2 2 Corruption Purged . | . . . . . Corruption Blocked . | . . . . . Effects 14 | . . 8 2 4 Message Errors 7 | . . 6 1 . Heat Flow Errors 4 | . . 1 1 2 Energy Discharges 2 | . . 1 . 1 Parts Rejected 1 | . . . . 1 Overload Shots . | . . . . . Overflow Damage 61 | . . 42 . 19 Projectiles 11 | . . . . 11 Explosions 8 | . . . . 8 Melee 42 | . . 42 . . Knockbacks 2 | . . 1 . 1 Impact 1 | . . 1 . . Kinetic 1 | . . . . 1 Secondary . | . . . . . Self-Inflicted Damage 73 | . . . . 73 Shots 4 | . . . . 4 Rammed . | . . . . . Targets Rammed . | . . . . . Kicked . | . . . . . Crushed . | . . . . . Highest Temperature 166 | . . 110 166 104 Average Temperature 44 | . . 43 89 36 Received Heat Transfer 283 | . 6 60 . 217 Siege Activations . | . . . . . Robots Corrupted . | . . . . . Combat Hostiles . | . . . . . Parts Fried 5 | . . 5 . . Impact Corruptions 3 | . . 3 . . Robots Melted . | . . . . . Combat Hostiles . | . . . . . Parts Melted . | . . . . . Heat Transferred 520 | . 25 458 . 37 Parts Sabotaged . | . . . . . Parts Stolen . | . . . . . Parts Stripped . | . . . . . Power Chain Reactions . | . . . . . Alert | -11 -10 -10 -10 -9 ------- Run | Yrd Mat Min Exi Min Peak Influence 210 | . 75 210 . 79 Initial 28 | . . 28 . . Average 46 | . 22 51 . 61 Maximum Alert Level 1 | . . 1 . . Low Security (%) 98 | 100 100 97 . 100 Level 1 1 | . . 2 . . Level 2 . | . . . . . Level 3 . | . . . . . Level 4 . | . . . . . Level 5 . | . . . . . High Security . | . . . . . Max Security . | . . . . . Squads Dispatched 1 | . 1 . . . Investigation 1 | . 1 . . . Extermination . | . . . . . Reinforcement . | . . . . . Assault . | . . . . . Garrison . | . . . . . Intercept . | . . . . . Searches Triggered . | . . . . . Construction Impeded . | . . . . . Haulers Reinforced . | . . . . . Active Scanning Responses . | . . . . . Cargo Convoy Interrupts . | . . . . . Stealth | -11 -10 -10 -10 -9 --------- Run | Yrd Mat Min Exi Min Distress Signals 2 | . 1 1 . . Communications Jammed . | . . . . . Distress Signals . | . . . . . Times Spotted 31 | . 8 10 . 13 Peak Tracking Total 8 | . 5 3 . 8 Tactical Retreats 5 | . 1 2 . 2 Traps | -11 -10 -10 -10 -9 ------- Run | Yrd Mat Min Exi Min Traps Triggered 1 | . 1 . . . Indirectly . | . . . . . Trap Hack Attempts . | . . . . . Triggered . | . . . . . Disarmed . | . . . . . Reprogrammed . | . . . . . Reused . | . . . . . Traps Extracted . | . . . . . Installed . | . . . . . Triggered . | . . . . . Machines | -11 -10 -10 -10 -9 ---------- Run | Yrd Mat Min Exi Min Machines Disabled . | . . . . . Max in Single Turn . | . . . . . Machines Repaired . | . . . . . Machines Dismantled . | . . . . . Machines Sabotaged . | . . . . . Overloaded Fab Kills . | . . . . . Hacking | -11 -10 -10 -10 -9 --------- Run | Yrd Mat Min Exi Min Machines Accessed 4 | . . . 4 . Terminals . | . . . . . Fabricators . | . . . . . Repair Stations . | . . . . . Recycling Units . | . . . . . Scanalyzers . | . . . . . Garrison Access . | . . . . . Total Hacks 49 | . . . 49 . Successful 49 | . . . 49 . Failed . | . . . . . Catastrophic . | . . . . . Database Lockouts . | . . . . . Manual . | . . . . . Terminals . | . . . . . Fabricators . | . . . . . Repair Stations . | . . . . . Recycling Units . | . . . . . Scanalyzers . | . . . . . Garrison Access . | . . . . . Terminal Hacks 49 | . . . 49 . Record 49 | . . . 49 . Fabricator Hacks . | . . . . . Repair Station Hacks . | . . . . . Recycling Unit Hacks . | . . . . . Scanalyzer . | . . . . . Garrison Access Hacks . | . . . . . Unauthorized Hacks . | . . . . . Terminals . | . . . . . Fabricators . | . . . . . Repair Stations . | . . . . . Recycling Units . | . . . . . Scanalyzers . | . . . . . Garrison Access . | . . . . . Data Cores Recovered . | . . . . . Used . | . . . . . Hacking Detections . | . . . . . Full Trace Events . | . . . . . Feedback Events . | . . . . . Feedback Blocked . | . . . . . Robot Schematics Acquired . | . . . . . Robots Built . | . . . . . Authchips . | . . . . . Time . | . . . . . Total Robot Build Rating . | . . . . . Part Schematics Acquired . | . . . . . Parts Built . | . . . . . Authchips . | . . . . . Time . | . . . . . Total Part Build Rating . | . . . . . Parts Repaired . | . . . . . Time . | . . . . . Parts Recycled . | . . . . . Recycled Matter . | . . . . . Retrieved Matter . | . . . . . Retrieved Components . | . . . . . Parts Scanalyzed . | . . . . . Part Schematics Acquired . | . . . . . Parts Damaged . | . . . . . Bothacking | -11 -10 -10 -10 -9 ------------ Run | Yrd Mat Min Exi Min Used RIF Installer . | . . . . . Robots Hacked . | . . . . . Non-combat . | . . . . . Combat . | . . . . . Robot Hacks Applied . | . . . . . Relay Couplers Released . | . . . . . Fabnet Peak Effective % . | . . . . . Robots Rewired . | . . . . . Allies Hacked . | . . . . . Hacks Repelled . | . . . . . Allies | -11 -10 -10 -10 -9 -------- Run | Yrd Mat Min Exi Min Total Allies 3 | . . 3 . . Largest Group 3 | . . 3 3 . Highest-Rated Group 40 | . . 40 40 . Highest-Rated Ally 16 | . . 16 16 . Total Orders . | . . . . . Ally Attacks . | . . . . . Total Damage . | . . . . . Kills . | . . . . . Allies Corrupted . | . . . . . Allies Melted . | . . . . . Intel | -11 -10 -10 -10 -9 ------- Run | Yrd Mat Min Exi Min Robot Analysis Total . | . . . . . Derelict Logs Recovered 1 | . . 1 . . Drone Launches . | . . . . . Drone Recoveries . | . . . . . Exploration | -11 -10 -10 -10 -9 ------------- Run | Yrd Mat Min Exi Min Turns Passed 1820 | 46 199 994 403 178 Spaces Moved 1215 | 43 178 458 418 118 Core 84 | 14 . 70 . . Treads . | . . . . . Legs . | . . . . . Wheels 1131 | 29 178 388 418 118 Hover . | . . . . . Flight . | . . . . . Fastest Speed 50 | 50 90 95 95 95 Average Speed 121 | 76 102 164 95 96 Slowest Speed 500 | 90 105 500 95 110 Overloaded Moves . | . . . . . Propulsion Burnouts . | . . . . . Robots Hopped . | . . . . . Cave-ins Triggered 1 | . . 1 . . Exploration Rate (%) 50 | 3 32 88 90 37 Regions Visited 4 Branch Regions 3 Pre-discovered Areas 2 | . . 1 1 . Known Exits Taken . | . . . . . Unknown Exits Taken 4 | 1 1 1 1 . Scrap Searched 1 | . . 1 . . Spaces Dug 2 | . . 2 . . Terrain Destroyed 51 | . . 2 . 49 Melee 2 | . . 2 . . Projectile . | . . . . . AOE 49 | . . . . 49 Terrain Rammed . | . . . . . Walls Destroyed . | . . . . . Machines Disabled . | . . . . . Actions | -11 -10 -10 -10 -9 --------- Run | Yrd Mat Min Exi Min Total 1473 | 55 192 651 424 151 Wait 143 | . . 139 3 1 Move 1211 | 42 177 457 417 118 Hop . | . . . . . Pick Up 37 | 7 9 16 2 3 Fast Attach . | . . . . . Attach 18 | 6 . 4 . 8 Detach 1 | . . . . 1 Swap 9 | . 2 5 . 2 Drop 10 | . 3 4 2 1 Fire 38 | . 1 20 . 17 Melee 6 | . . 6 . . Ram . | . . . . . Kick . | . . . . . Crush . | . . . . . Escape Stasis . | . . . . . Rewire . | . . . . . Trap . | . . . . . Miscellaneous . | . . . . . Route ------- -11/Scrapyard -10/Materials -10/Mines (discovered 3 exits: [*Mat x2] / *Exi) -10/Exiles -9/Mines History --------- Turn | Location | Event 31 | -11/Scrapyard | Discovered new exit (range 15) 47 | -11/Scrapyard | Entered Materials 102 | -10/Materials | Discovered new exit (range 6) 246 | -10/Materials | Entered Mines 318 | -10/Mines | Build established: Mutant 469 | -10/Mines | Discovered new exit (range 5) 490 | -10/Mines | Excavation squad dispatched 490 | -10/Mines | A large section of the Mines collapsed 511 | -10/Mines | Crushed by falling debris 511 | -10/Mines | Core integrity fell below 50% 651 | -10/Mines | Learned location of Storage (-9) 1094 | -10/Mines | Assisted by bots powering up and referring to "LRC-V3" 1120 | -10/Mines | Discovered new exit (range 12) 1192 | -10/Mines | Build established: Scavenger-Mutant 1196 | -10/Mines | Learned Materials trap positions 1235 | -10/Mines | Deemed a non-threat by the Exiles lab entrance 1236 | -10/Mines | Discovered new exit (range 5) 1240 | -10/Mines | Entered Exiles 1240 | -10/Exiles | Found Exiles lab destroyed 1240 | -10/Exiles | Accompanied by 3 allies 1448 | -10/Exiles | Learned location of Zion (-6) 1630 | -10/Exiles | Discovered new exit (range 14) 1643 | -10/Exiles | Entered Mines 1673 | -9/Mines | Assembled infested the area 1678 | -9/Mines | Assisted by a Guerilla fighting off Assembled 1706 | -9/Mines | Received a Rocket Launcher from a helpful Derelict 1708 | -9/Mines | Core integrity fell below 20% 1764 | -9/Mines | Lost 4 parts (1p1n2w) 1821 | -9/Mines | Destroyed by as-29043 with Assembled Maul Last Messages --------------- T-07 Excavator is excavating. Lgt. Ion Engine destroyed. as-14267 destroyed. T-07 Excavator is excavating. Assault Rifle destroyed. The unstable cave ceiling collapses. Wheel destroyed. Destroyed Asb. Hover Unit. U-05 Engineer lays Concrete. Acquired 2 matter. U-05 Engineer lays Concrete. System corrupted: Heat flow error (+119). U-05 Engineer lays Concrete. System corrupted: Heat flow error (+116). System corrupted: Energy discharge (-58). T-07 Excavator is excavating. K-01 Serf collects debris. as-29043 knocked back. Acquired Rocket Launcher. K-01 Serf collects debris. Map ----- +----------------------------------------------------+ | ?????????????????????????????????????????? | | ?????????????????????????????????????????? | | ?????????????????????????????????????????? | | ?????????????????????????????????????????? | | ??????##?????????????????????????????????? | | ?????? #????????????????????????????????? | | ?????? #?### #?????????????????????????? | | ?????? ## ??????????????????????????? | | ?????? # ???????????????????????????? | | #????? ???????????????????????????? | | # ??## ???????????? ??????????????? | | # ### ????????????? ??????????????? | | ? #????????????? #?????????????? | | ?? ##???????????? #?????????????? | | ??# ###?????????? #?????????????? | | ??# ##???????## #?????????????? | | ???# ##????### k##????????????? | | ????# #???## #????????????? | | ???## #?### #????????????? | | ??## ## #?## #????????????? | | ??# ##???????## ?????????????? | | ??# ## #### ##### #?????????????? | | ??# ## t #?????????????? | | ??# ## ? #?????????????? | | ??# ##### #????# #?????????????? | | ??# #???# #????# @#??????????????? | | ??# ##### #????# a##??????????????? | | ??# #????## ##???????????????? | | ??####### ###???## #????????????????? | | ???????## ##??## #????????????????? | | ???????# #### #????????????????? | | ???????# ##% #????????????????? | | ???????# g ##### ????????? | | ??????## ## #???????? | | ?????## #### ##?????????? | | ?????# ##??# * #######??????????? | | ????## #???### % #????????????????? | | ???## #???# #????????????????? | | ???# ##???# ##?#####??????????? | | ???# #????# %= ##?## ##?????????? | | ???# #????# ###?## #?????????? | | ???## #???# ##### #?????????? | | ????## #??### #?????????? | | ?????# #???# # * #?????????? | | ?????## ##???# #= #?????????? | | ???????###????## #* = #?????????? | | ???????????????## ## ##= #?????????? | | ????????????????# ## # ##?????????? | | ????????????????# ### # ##??????????? | | ????????????????# #?# ## #???????????? | +----------------------------------------------------+ Best States ------------- Heat Dissipation 25 Energy Generation 10 Energy Capacity 250 Matter Stores 300 Matter Capacity 300 Sight Range 16 Terrain Scan Density 135 Armor Coverage 150 Evasion (%) 50 Item Schematics ----------------- None Robot Schematics ------------------ None Fabricated ------------ Nothing Alien Tech Used ----------------- None Achievements -------------- None Challenges ------------ None Game ------ Seed ContainmentExperimentalBank Manual? 0 Play Time 00:16:26 Cumulative 26.4 hours Start 2024.04.21 @ 20:10:58 End 2024.04.21 @ 20:24:24 Sessions 1 Manual Loads 0 Difficulty Rogue Special Mode None Game No. 40 Rogue 39 Adventurer 1 Explorer 0 Win Type - Total 0 Types 0/0/0/0/0/0/0/0/0 Lore% 24 Gallery% 31 Achievement% 25 Wizard Run 0 Options --------- Layout 1 ASCII 0 Keyboard 0 Movement Mouse Keybinds 0 Fullscreen 1 Font 24/Smallcaps Map View 50x40 Zoom Use 0% Tactical HUD 0 Map Filters NONE Filters NONE Steam 1 RUN: 184494b2-4665-4fd1-a83b-0bd6e0ac6986